bitfinex/quotes_SOLUSD_20240628
["timestamp","ask_amount","ask_price","bid_price","bid_amount"]
[1719598835469,20.0,141.7,141.59,7.0622]
[1719598835661,20.0,141.7,141.6,7.0621]
[1719598835962,20.0,141.7,141.61,7.0616]
[1719598837462,20.0,141.7,141.6,17.6551]
[1719598837463,6.2501,141.69,141.6,17.6551]
[1719598837631,20.0,141.68,141.58,7.906694]
[1719598837967,22.0277,141.67,141.58,0.843794]
[1719598838336,20.0,141.66,141.58,0.843794]
[1719598839263,20.0,141.66,141.52,17.6584]
[1719598839264,27.3734,141.64,141.52,17.6584]
[1719598839468,41.22,141.63,141.5,17.6674]
[1719598840234,6.5929,141.6,141.47,17.71328469]
[1719598840430,20.0,141.59,141.48,7.0676]
[1719598841348,20.0,141.59,141.47,0.04188469]
[1719598841839,6.5929,141.6,141.55,7.0643]
[1719598842547,6.5929,141.6,141.53,17.6636]
[1719598842755,6.5929,141.6,141.54,7.0647]
[1719598843769,6.5929,141.6,141.53,24.729]
[1719598843968,6.5929,141.6,141.54,7.0648]
[1719598844543,6.5929,141.6,141.55,7.0645]
[1719598844861,15.9574,141.62,141.52,179.4494]
[1719598845065,6.6533,141.63,141.54,100.0]
[1719598845362,6.6533,141.63,141.57,17.6585]
[1719598845574,15.8963,141.66,141.58,100.0]
[1719598845866,6.3891,141.68,141.63,7.0604]
[1719598846068,15.2789,141.71,141.63,7.0604]
[1719598846069,15.2789,141.71,141.66,7.0591]
[1719598846442,15.2789,141.71,141.64,7.0601]
[1719598847366,15.2789,141.71,141.63,17.651]
[1719598847670,20.0,141.7,141.61,7.0614]
[1719598847973,20.0,141.7,141.63,7.0601]
[1719598848152,20.0,141.7,141.64,7.0598]
[1719598848356,15.2789,141.71,141.65,7.0594]
[1719598848679,15.2789,141.71,141.6,135.3106]
[1719598848680,15.2789,141.71,141.63,7.0606]
[1719598848848,15.2789,141.71,141.62,7.061]
[1719598849045,15.2789,141.71,141.61,24.7149]
[1719598849265,15.2789,141.71,141.61,17.6534]
[1719598849571,15.2789,141.71,141.61,24.7148]
[1719598849785,20.0,141.7,141.61,17.6534]
[1719598849947,20.0,141.7,141.65,7.0592]
[1719598850150,15.2789,141.71,141.65,7.0592]
[1719598850965,15.2789,141.71,141.64,24.7102]
[1719598851147,15.2789,141.71,141.64,17.6501]
[1719598851371,15.2789,141.71,141.64,24.7102]
[1719598851560,15.2789,141.71,141.64,17.6501]
[1719598851757,15.2789,141.71,141.61,100.0]
[1719598851758,6.3,141.72,141.68,7.0581]
[1719598852257,6.3,141.72,141.67,7.0586]
[1719598852581,6.3,141.72,141.66,24.7062]
[1719598853163,6.3,141.72,141.63,55.3706]
[1719598853358,6.3,141.72,141.63,62.4309]
[1719598853567,6.3,141.72,141.64,7.06]
[1719598853753,6.3,141.72,141.65,7.0595]
[1719598853956,6.3,141.72,141.64,7.06]
[1719598854883,6.3,141.72,141.63,17.6506]
[1719598855082,20.0,141.71,141.6,52.9635]
[1719598855458,20.0,141.71,141.62,7.061]
[1719598856389,16.1738,141.7,141.6,17.6545]
[1719598856687,6.0083,141.68,141.56,7.0636]
[1719598856865,6.0083,141.68,141.56,17.6599]
[1719598857057,20.0,141.67,141.57,7.0632]
[1719598857376,20.0,141.67,141.58,17.6574]
[1719598857580,20.0,141.67,141.58,24.7202]
[1719598857786,20.0,141.67,141.59,7.0625]
[1719598858472,20.0,141.67,141.58,24.7204]
[1719598858668,16.2557,141.66,141.58,24.7204]
[1719598858884,20.0,141.65,141.58,24.7204]
[1719598859064,20.0,141.65,141.59,7.0625]
[1719598859695,20.0,141.65,141.58,17.6574]
[1719598859995,20.0,141.65,141.56,7.0639]
[1719598860661,20.0,141.65,141.57,7.0636]
[1719598861059,6.1703,141.64,141.54,7.065]
[1719598861287,6.1703,141.64,141.52,17.6644]
[1719598861288,20.0,141.63,141.52,17.6644]
[1719598861587,15.3841,141.62,141.53,7.0652]
[1719598861792,20.0,141.61,141.51,100.0]
[1719598861963,20.0,141.61,141.5,40.98798414]
[1719598862294,20.0,141.61,141.54,7.0648]
[1719598862596,20.0,141.61,141.53,17.6631]
[1719598863206,20.0,141.61,141.55,17.6607]
[1719598863378,20.0,141.61,141.57,7.0635]
[1719598863570,15.3841,141.62,141.57,17.6587]
[1719598863766,15.3841,141.62,141.6,7.062]
[1719598863969,15.3841,141.62,141.49,34.4635]
[1719598864191,15.3841,141.62,141.56,17.6593]
[1719598864490,15.3841,141.62,141.57,30.0]
[1719598864696,15.3841,141.62,141.58,7.0627]
[1719598865094,15.3841,141.62,141.57,30.0]
[1719598865095,20.0,141.61,141.57,30.0]
[1719598866186,20.0,141.61,141.56,7.0641]
[1719598866767,20.0,141.61,141.52,17.6652]
[1719598866768,6.5928,141.6,141.52,17.6652]
[1719598866985,6.5928,141.6,141.47,64.99018469]
[1719598866986,20.0,141.59,141.53,30.0]
[1719598867163,20.0,141.59,141.5,7.0669]
[1719598868069,20.0,141.59,141.51,7.0665]
[1719598868679,20.0,141.59,141.49,17.6683]
[1719598869569,20.0,141.59,141.48,100.0]
[1719598869777,6.5928,141.6,141.53,7.0656]
[1719598869973,6.5928,141.6,141.52,7.066]
[1719598870592,6.5928,141.6,141.51,24.7326]
[1719598870895,6.5928,141.6,141.51,17.6662]
[1719598871097,20.0,141.59,141.51,24.7327]
[1719598872399,20.0,141.59,141.51,17.6662]
[1719598872575,20.0,141.59,141.5,7.067]
[1719598872783,20.0,141.59,141.48,24.7369]
[1719598873310,20.0,141.59,141.47,105.54491221]
[1719598873519,20.0,141.59,141.49,7.0672]
[1719598873887,20.0,141.59,141.5,7.0669]
[1719598874190,20.0,141.59,141.51,17.666]
[1719598874892,20.0,141.59,141.51,24.7326]
[1719598875296,20.0,141.59,141.5,7.0669]
[1719598876000,20.0,141.59,141.51,7.0665]
[1719598876323,6.5928,141.6,141.51,100.0]
[1719598876508,6.5928,141.6,141.55,7.0643]
[1719598876816,6.5928,141.6,141.55,7.0645]
[1719598877038,6.5928,141.6,141.54,17.6626]
[1719598877039,6.5928,141.6,141.52,30.0]
[1719598877496,6.5928,141.6,141.49,7.0674]
[1719598877700,20.0,141.59,141.49,7.0674]
[1719598878617,20.0,141.59,141.48,17.6694]
[1719598878618,15.2994,141.58,141.48,24.7371]
[1719598878822,20.0,141.57,141.48,24.7371]
[1719598879111,20.0,141.57,141.5,7.067]
[1719598879489,15.2994,141.58,141.5,17.6676]
[1719598879694,15.2994,141.58,141.52,7.0659]
[1719598880000,15.2994,141.58,141.53,7.0654]
[1719598880197,15.2994,141.58,141.52,24.7306]
[1719598881520,15.2994,141.58,141.49,17.668]
[1719598881891,15.2994,141.58,141.51,7.0665]
[1719598883002,15.2994,141.58,141.52,7.0661]
[1719598883206,15.2994,141.58,141.51,24.7329]
[1719598883601,15.2994,141.58,141.52,7.0659]
[1719598884409,15.2994,141.58,141.51,17.6664]
[1719598884604,15.2994,141.58,141.52,7.066]
[1719598886928,15.2994,141.58,141.53,7.0655]
[1719598887108,16.3131,141.64,141.53,100.0]
[1719598887311,16.3131,141.64,141.58,7.0629]
[1719598887615,16.3131,141.64,141.53,137.72]
[1719598887817,16.3131,141.64,141.54,50.0]
[1719598888016,16.3131,141.64,141.57,7.0635]
[1719598888213,16.3131,141.64,141.56,7.0639]
[1719598888825,16.3131,141.64,141.57,7.0636]
[1719598889004,16.3131,141.64,141.57,17.6586]
[1719598889204,16.3131,141.64,141.57,24.7222]
[1719598889927,16.3131,141.64,141.57,17.6586]
[1719598890525,16.3131,141.64,141.54,137.6618]
[1719598890702,16.3131,141.64,141.56,7.0638]
[1719598891202,16.3131,141.64,141.57,7.0635]
[1719598891914,16.3131,141.64,141.58,7.0631]
[1719598894124,16.3131,141.64,141.59,7.0623]
[1719598894628,16.3131,141.64,141.58,24.7199]
[1719598895006,16.3131,141.64,141.58,24.7198]
[1719598895202,16.3131,141.64,141.57,7.0634]
[1719598896133,16.3131,141.64,141.58,7.063]
[1719598897832,16.3131,141.64,141.57,58.3121]
[1719598898413,16.3131,141.64,141.58,7.0631]
[1719598899410,16.3131,141.64,141.57,33.59]
[1719598899733,16.3131,141.64,141.56,7.0641]
[1719598900832,16.3131,141.64,141.58,7.0631]
[1719598901038,16.3131,141.64,141.56,17.6592]
[1719598901217,16.3131,141.64,141.57,30.0]
[1719598902618,16.3131,141.64,141.56,7.0641]
[1719598902831,16.3131,141.64,141.57,7.0636]
[1719598903940,16.3131,141.64,141.56,7.0641]
[1719598904343,16.3131,141.64,141.57,7.0636]
[1719598904724,16.3131,141.64,141.56,7.064]
[1719598905030,20.0,141.63,141.57,7.0636]
[1719598905937,20.0,141.63,141.56,7.0639]
[1719598906244,20.0,141.63,141.54,39.17515433]
[1719598906433,23.3126,141.62,141.55,30.0]
[1719598906637,20.0,141.61,141.55,30.0]
[1719598906848,16.2708,141.59,141.5,5.69060978]
[1719598907029,20.0,141.58,141.47,107.11038469]
[1719598907232,20.0,141.58,141.48,7.068]
[1719598907422,20.0,141.58,141.49,7.0675]
[1719598907822,20.0,141.58,141.51,30.0]
[1719598908836,20.0,141.58,141.49,7.0675]
[1719598910543,20.0,141.58,141.48,24.7379]
[1719598911651,21.403,141.55,141.47,0.04188469]
[1719598911853,21.403,141.53,141.47,0.04188469]
[1719598912021,15.1261,141.52,141.47,0.04188469]
[1719598912223,6.2769,141.5,141.47,0.04188469]
[1719598912527,20.0,141.49,141.43,0.843794]
[1719598914241,15.1261,141.48,141.43,0.843794]
[1719598914545,20.0,141.47,141.43,0.843794]
[1719598914738,6.1299,141.46,141.43,0.843794]
[1719598914937,20.0,141.45,141.43,0.843794]
[1719598915431,6.1299,141.46,141.43,0.843794]
[1719598918569,15.1261,141.48,141.43,0.843794]
[1719598922557,20.0,141.47,141.43,0.843794]
[1719598923142,6.3929,141.46,141.43,0.843794]
[1719598923451,20.0,141.45,141.43,0.843794]
[1719598924957,6.3929,141.46,141.43,0.843794]
[1719598925159,15.1261,141.48,141.43,0.843794]
[1719598925456,20.0,141.47,141.43,0.843794]
[1719598926962,15.1261,141.48,141.43,0.843794]
[1719598929330,15.1261,141.48,141.43,7.914394]
[1719598929562,357.2,141.63,141.44,33.59]
[1719598929563,16.4881,141.51,141.44,33.59]
[1719598929935,16.4881,141.51,141.44,40.6597]
[1719598930352,16.4881,141.51,141.44,33.59]
[1719598930672,16.4881,141.51,141.43,0.843794]
[1719598931161,16.4881,141.51,141.43,41.503994]
[1719598931470,16.4881,141.51,141.44,7.0701]
[1719598931673,16.4881,141.51,141.46,7.0688]
[1719598931853,16.4881,141.51,141.46,40.6588]
[1719598932259,16.4881,141.51,141.46,33.59]
[1719598934562,16.4881,141.51,141.47,24.7397]
[1719598934761,22.2983,141.57,141.47,17.6712]
[1719598934974,22.2983,141.57,141.48,7.068]
[1719598935565,22.2983,141.57,141.49,7.0675]
[1719598935937,22.2983,141.57,141.5,7.067]
[1719598936134,22.2983,141.57,141.49,51.2587]
[1719598936333,22.2983,141.57,141.49,58.3259]
[1719598936752,22.2983,141.57,141.49,51.2587]
[1719598937144,22.2983,141.57,141.49,58.3263]
[1719598937344,22.2983,141.57,141.5,1.4127886]
[1719598938361,22.2983,141.57,141.49,51.2587]
[1719598938570,22.2983,141.57,141.49,58.3262]
[1719598939264,22.2983,141.57,141.49,33.59]
[1719598940163,15.6577,141.57,141.52,33.59]
[1719598940365,9.71724174,141.57,141.53,7.0654]
[1719598940675,9.71724174,141.57,141.52,58.3204]
[1719598940971,6.4859,141.61,141.53,7.0656]
[1719598941265,6.4859,141.61,141.52,58.3204]
[1719598942076,6.4859,141.61,141.52,51.2545]
[1719598942472,20.0,141.6,141.52,51.2545]
[1719598942684,20.0,141.6,141.52,58.3205]
[1719598943365,35.9338,141.6,141.52,58.3205]
[1719598943674,35.9338,141.6,141.54,7.0651]
[1719598943850,35.9338,141.6,141.52,51.2545]
[1719598944050,35.9338,141.6,141.53,7.0654]
[1719598944451,35.9338,141.6,141.52,51.2545]
[1719598944452,35.9338,141.6,141.52,58.3204]
[1719598944763,35.9338,141.6,141.52,51.2545]
[1719598945181,35.9338,141.6,141.52,33.59]
[1719598945766,35.9338,141.6,141.52,40.6561]
[1719598946887,35.9338,141.6,141.52,33.59]
[1719598947391,35.9338,141.6,141.53,7.0655]
[1719598947563,35.9338,141.6,141.52,40.6559]
[1719598948282,35.9338,141.6,141.53,7.0655]
[1719598948459,35.9338,141.6,141.54,7.065]
[1719598948661,15.9338,141.6,141.55,51.2511]
[1719598949179,15.9338,141.6,141.56,7.064]
[1719598949376,15.9338,141.6,141.55,58.3157]
[1719598949553,15.9338,141.6,141.55,51.2511]
[1719598949960,15.9338,141.6,141.52,58.3205]
[1719598950156,15.9338,141.6,141.49,23.37755872]
[1719598950386,15.9338,141.6,141.5,30.0]
[1719598950387,20.0,141.59,141.5,30.0]
[1719598950588,20.0,141.59,141.5,37.067]
[1719598950795,20.0,141.59,141.5,30.0]
[1719598951293,20.0,141.59,141.48,58.328]
[1719598951294,21.5323,141.58,141.49,17.6685]
[1719598951458,20.0,141.57,141.51,7.0664]
[1719598951660,20.0,141.57,141.49,17.6685]
[1719598951661,20.0,141.57,141.5,7.0669]
[1719598951887,20.0,141.57,141.48,39.20452166]
[1719598952584,20.0,141.57,141.49,7.0673]
[1719598953091,20.0,141.57,141.48,39.20452166]
[1719598954186,6.3714,141.55,141.45,24.7425]
[1719598954388,6.3714,141.55,141.42,123.5671]
[1719598954389,20.0,141.54,141.42,17.677]
[1719598954593,16.5974,141.53,141.42,17.677]
[1719598954791,20.0,141.52,141.43,7.913994]
[1719598955259,20.0,141.52,141.44,7.07]
[1719598956064,20.0,141.52,141.44,51.2649]
[1719598956365,20.0,141.52,141.45,7.0695]
[1719598956682,20.0,141.52,141.46,7.0691]
[1719598956894,20.0,141.52,141.44,17.6749]
[1719598957069,20.0,141.52,141.46,7.0688]
[1719598957269,20.0,141.52,141.45,7.0694]
[1719598957470,20.0,141.52,141.44,24.7449]
[1719598958266,20.0,141.52,141.43,40.18586473]
[1719598958469,6.2558,141.51,141.43,0.843794]
[1719598958781,20.0,141.5,141.43,0.843794]
[1719598960289,20.0,141.5,141.45,7.0695]
[1719598960470,6.2558,141.51,141.45,7.0695]
[1719598960677,6.2558,141.51,141.47,7.0686]
[1719598960880,6.2558,141.51,141.45,17.6737]
[1719598961082,6.2558,141.51,141.45,24.7431]
[1719598962282,6.2558,141.51,141.44,7.07]
[1719598962989,6.2558,141.51,141.43,0.843794]
[1719598963377,20.0,141.5,141.43,0.843794]
[1719598963574,16.2078,141.49,141.43,0.843794]
[1719598964777,15.9067,141.47,141.43,0.843794]
[1719598965097,20.0,141.46,141.43,0.843794]
[1719598965402,6.372,141.45,141.33,260.0]
[1719598965579,6.372,141.45,141.34,30.0]
[1719598965580,16.1901,141.44,141.34,30.0]
[1719598965784,44.1053,141.43,141.34,30.0]
[1719598966102,36.4487,141.42,141.3,7.077]
[1719598966270,36.4487,141.42,141.31,7.0766]
[1719598966665,36.4487,141.42,141.32,7.0761]
[1719598966898,36.4487,141.42,141.31,17.6911]
[1719598967072,36.4487,141.42,141.33,24.7639]
[1719598967397,42.4154,141.41,141.29,0.843794]
[1719598967695,21.1954,141.38,141.29,0.843794]
[1719598968097,20.0,141.37,141.29,0.843794]
[1719598968476,20.0,141.37,141.29,7.921294]
[1719598968675,20.0,141.37,141.3,7.077]
[1719598968980,20.0,141.37,141.29,25.614394]
[1719598969195,20.0,141.37,141.31,7.0766]
[1719598969598,20.0,141.37,141.32,7.076]
[1719598969901,21.1954,141.38,141.33,7.0755]
[1719598970468,21.1954,141.38,141.32,7.076]
[1719598970693,21.1954,141.38,141.33,7.0755]
[1719598970900,21.3972,141.42,141.34,7.0748]
[1719598971198,21.3972,141.42,141.33,24.7636]
[1719598971701,21.3972,141.42,141.35,7.0746]
[1719598972085,21.3972,141.42,141.33,17.6882]
[1719598972278,21.3972,141.42,141.36,7.0739]
[1719598973212,21.3972,141.42,141.35,17.6859]
[1719598973375,21.3972,141.42,141.32,17.6902]
[1719598973582,21.3972,141.42,141.32,24.7659]
[1719598973781,21.3972,141.42,141.33,7.0754]
[1719598973979,20.0,141.41,141.33,7.0754]
[1719598974213,20.0,141.41,141.32,24.7662]
[1719598974509,20.0,141.41,141.32,17.6902]
[1719598975110,20.0,141.41,141.35,7.0745]
[1719598975282,21.3972,141.42,141.35,7.0745]
[1719598975498,21.3972,141.42,141.34,17.6872]
[1719598975694,21.3972,141.42,141.34,24.7619]
[1719598976515,21.3972,141.42,141.35,7.0746]
[1719598976884,21.3972,141.42,141.36,7.074]
[1719598977823,21.3972,141.42,141.34,100.0]
[1719598978114,15.3082,141.46,141.4,24.7516]
[1719598978298,15.3082,141.46,141.41,7.0715]
[1719598978617,6.6441,141.49,141.43,7.0705]
[1719598978835,6.6441,141.49,141.43,7.0701]
[1719598979122,6.6441,141.49,141.4,7.0719]
[1719598979295,6.6441,141.49,141.41,20.0]
[1719598979614,6.6441,141.49,141.42,7.071]
[1719598979810,6.6441,141.49,141.41,44.7498]
[1719598980001,6.6441,141.49,141.41,37.6784]
[1719598980199,6.6441,141.49,141.42,7.071]
[1719598980516,6.6441,141.49,141.4,7.0717]
[1719598980727,6.6441,141.49,141.39,100.0]
[1719598981020,6.6432,141.53,141.46,17.6724]
[1719598981197,6.6432,141.53,141.43,17.6761]
[1719598981818,6.6432,141.53,141.43,24.7465]
[1719598981992,6.6432,141.53,141.41,45.0114]
[1719598982194,20.0,141.52,141.41,45.0114]
[1719598982423,20.0,141.52,141.42,7.0709]
[1719598982622,20.0,141.52,141.43,7.0702]
[1719598982817,20.0,141.52,141.42,17.6773]
[1719598983192,20.0,141.52,141.43,7.0705]
[1719598983717,20.0,141.52,141.44,7.0697]
[1719598984425,20.0,141.52,141.45,7.0695]
[1719598984820,20.0,141.52,141.41,55.6186]
[1719598985319,16.0498,141.51,141.4,20.0]
[1719598985496,20.0,141.5,141.42,7.0708]
[1719598985694,20.0,141.5,141.4,37.6796]
[1719598986391,20.0,141.5,141.42,7.0709]
[1719598987494,20.0,141.5,141.4,24.7517]
[1719598987699,20.0,141.5,141.41,7.0714]
[1719598987910,20.0,141.5,141.4,17.6796]
[1719598987911,20.0,141.5,141.42,7.0711]
[1719598988426,20.0,141.5,141.41,7.0714]
[1719598988927,20.0,141.5,141.4,135.3586]
[1719598989228,20.0,141.5,141.44,17.6751]
[1719598989923,20.0,141.5,141.41,24.7503]
[1719598990518,20.0,141.5,141.42,7.0706]
[1719598990721,20.0,141.5,141.43,7.0706]
[1719598990923,20.0,141.5,141.44,7.0698]
[1719598991114,16.0498,141.51,141.45,7.0695]
[1719598991310,16.0498,141.51,141.43,17.6761]
[1719598991637,16.0498,141.51,141.41,7.0713]
[1719598992137,16.0498,141.51,141.42,7.0709]
[1719598992729,20.0,141.5,141.43,7.0701]
[1719598992934,20.0,141.5,141.44,7.0699]
[1719598993107,16.0498,141.51,141.44,24.7446]
[1719598994055,16.0498,141.51,141.44,17.6749]
[1719598994331,16.0498,141.51,141.46,17.6723]
[1719598994531,16.0498,141.51,141.47,7.0683]
[1719598994734,16.0498,141.51,141.46,17.6723]
[1719598995112,16.0498,141.51,141.47,7.0685]
[1719598995305,16.0498,141.51,141.46,24.7412]
[1719598995620,16.0498,141.51,141.45,33.66]
[1719598997008,16.0498,141.51,141.45,40.7296]
[1719598997204,16.0498,141.51,141.45,33.66]
[1719598998741,16.0498,141.51,141.45,40.7296]
[1719598999045,16.0498,141.51,141.44,33.66]
[1719598999408,6.6432,141.53,141.47,33.66]
[1719598999625,6.6432,141.53,141.47,51.3309]
[1719598999827,15.6232,141.5,141.47,16.9934]
[1719599000019,22.0299,141.48,141.36,33.66]
[1719599000218,15.6232,141.46,141.33,7.0755]
[1719599000422,6.4067,141.45,141.34,30.0]
[1719599000644,6.4067,141.45,141.33,39.34037789]
[1719599000937,20.0,141.44,141.33,46.41587789]
[1719599001303,20.0,141.44,141.33,51.3485]
[1719599001509,20.0,141.44,141.34,7.0747]
[1719599002211,20.0,141.44,141.33,58.4241]
[1719599002408,20.0,141.44,141.35,7.0746]
[1719599003538,6.4067,141.45,141.35,17.6856]
[1719599003833,6.4067,141.45,141.36,7.074]
[1719599004017,6.4067,141.45,141.34,44.9847]
[1719599004223,6.4067,141.45,141.35,20.0]
[1719599004620,6.4067,141.45,141.36,100.0]
[1719599004829,6.4067,141.45,141.39,7.0726]
[1719599005011,15.6232,141.46,141.4,7.072]
[1719599005212,15.6232,141.46,141.38,17.6819]
[1719599005409,15.6232,141.46,141.38,24.7546]
[1719599006215,15.6232,141.46,141.38,17.6819]
[1719599006429,20.0,141.45,141.35,37.6857]
[1719599006631,20.0,141.45,141.36,7.0739]
[1719599007646,20.0,141.45,141.37,7.0735]
[1719599009019,20.0,141.45,141.39,7.0721]
[1719599009220,6.2524,141.49,141.38,100.0]
[1719599009435,6.2524,141.49,141.4,7.072]
[1719599009925,6.2524,141.49,141.4,117.68]
[1719599010233,6.2524,141.49,141.42,24.7482]
[1719599010548,6.2524,141.49,141.41,7.0714]
[1719599011130,6.2524,141.49,141.41,6.5714]
[1719599011341,6.2524,141.49,141.42,7.0711]
[1719599011659,15.7362,141.5,141.43,20.0]
[1719599012038,15.7362,141.5,141.44,17.6747]
[1719599012234,15.7362,141.5,141.38,100.0]
[1719599012544,15.7362,141.5,141.4,20.0]
[1719599012750,20.0,141.49,141.4,37.6799]
[1719599012947,20.0,141.49,141.4,20.0]
[1719599013162,20.0,141.49,141.42,17.6771]
[1719599013358,20.0,141.49,141.41,7.0715]
[1719599013554,20.0,141.49,141.42,7.071]
[1719599013866,15.7362,141.5,141.43,7.0706]
[1719599014162,15.7362,141.5,141.44,7.07]
[1719599014341,15.7362,141.5,141.43,7.0705]
[1719599014536,15.7362,141.5,141.44,20.0]
[1719599014758,15.7362,141.5,141.45,7.0696]
[1719599015267,6.2665,141.53,141.47,117.671]
[1719599015467,16.2341,141.55,141.49,7.0673]
[1719599015780,16.2341,141.55,141.49,17.6687]
[1719599016141,16.2341,141.55,141.5,7.067]
[1719599016338,16.2341,141.55,141.49,24.7361]
[1719599017752,16.2341,141.55,141.48,20.0]
[1719599018472,16.2341,141.55,141.46,24.7408]
[1719599019246,16.2341,141.55,141.44,5.61046845]
[1719599019448,20.0,141.54,141.43,117.6758]
[1719599020668,20.0,141.54,141.44,7.07]
[1719599020858,20.0,141.54,141.45,20.0]
[1719599021060,6.3221,141.53,141.43,17.6758]
[1719599021361,6.3221,141.53,141.41,100.0]
[1719599021362,15.6956,141.51,141.38,144.9826]
[1719599021579,26.3611,141.5,141.37,32.902]
[1719599021755,26.3611,141.5,141.4,7.0721]
[1719599022377,26.3611,141.5,141.39,100.0]
[1719599022879,26.3611,141.5,141.42,7.071]
[1719599023179,26.3611,141.5,141.37,38.57394192]
[1719599023483,15.6956,141.47,141.35,100.0]
[1719599023780,15.6956,141.47,141.36,17.6849]
[1719599023977,20.0,141.46,141.36,17.6849]
[1719599024272,20.0,141.46,141.37,7.0735]
[1719599024652,20.0,141.46,141.38,7.0728]
[1719599024858,15.6956,141.47,141.39,100.0]
[1719599025053,15.6956,141.47,141.37,37.91]
[1719599025269,15.6956,141.47,141.39,17.6814]
[1719599025786,15.6956,141.47,141.41,7.0715]
[1719599026263,15.6956,141.47,141.39,24.7538]
[1719599026468,15.6956,141.47,141.4,7.0717]
[1719599027183,15.6956,141.47,141.39,24.754]
[1719599027378,15.6956,141.47,141.41,7.0715]
[1719599028002,15.6956,141.47,141.43,7.0706]
[1719599028186,21.3503,141.52,141.43,100.0]
[1719599029195,21.9358,141.56,141.47,24.7386]
[1719599029788,21.9358,141.56,141.49,7.0674]
[1719599030614,21.9358,141.56,141.49,17.6684]
[1719599030816,21.9358,141.56,141.49,24.7355]
[1719599030983,6.1156,141.56,141.5,20.0]
[1719599032103,6.1156,141.56,141.5,27.067]
[1719599032403,6.1156,141.56,141.51,7.0665]
[1719599033190,6.1156,141.56,141.52,1.41268977]
[1719599033388,16.2056,141.6,141.54,7.0646]
[1719599033389,22.6557,141.6,141.54,7.0646]
[1719599035111,22.6557,141.6,141.52,7.066]
[1719599035296,22.6557,141.6,141.53,20.0]
[1719599035715,22.6557,141.6,141.54,7.0649]
[1719599036683,22.6557,141.6,141.54,117.662]
[1719599036891,22.6557,141.6,141.55,27.0645]
[1719599037117,22.6557,141.6,141.55,20.0]
[1719599039901,22.6557,141.6,141.55,27.0645]
[1719599040304,22.6557,141.6,141.55,20.0]
[1719599042704,22.6557,141.6,141.55,27.0645]
[1719599044229,22.6557,141.6,141.55,20.0]
[1719599044530,22.6557,141.6,141.54,20.0]
[1719599046032,22.6557,141.6,141.54,27.0651]
[1719599046234,22.6557,141.6,141.55,7.0646]
[1719599046435,22.6557,141.6,141.55,17.6605]
[1719599046631,22.6557,141.6,141.57,7.0635]
[1719599046936,22.6557,141.6,141.56,7.064]
[1719599047412,22.6557,141.6,141.55,24.7249]
[1719599047917,22.6557,141.6,141.56,7.0639]
[1719599049126,16.2312,141.63,141.58,7.0627]
[1719599049436,16.2312,141.63,141.59,17.6564]
[1719599049742,10.0688346,141.63,141.59,17.6564]
[1719599049956,10.0688346,141.63,141.56,24.7233]
[1719599050113,10.0688346,141.63,141.57,20.0]
[1719599050454,10.0688346,141.63,141.54,27.065]